Workbook

Sheet NSU
B1: Riina Ahvenniemi | E1: 3.5.1988
B2: SUPERPESIS | E2: Runkosarja | I2: Kärkilyönnit (KL), pesänvälit | P2: Ylempi loppusarja | U2: Alempi loppusarja | AB2: Arvo-ottelut ja mitalit
B3: Vuosi | C3: Sija | D3: Seura | E3: OTT | F3: KUN | G3: LÖI | H3: TOI | I3: KL | J3: 0 > 1 | K3: 1 > 2 | L3: 2 > 3 | M3: 3 > k | N3: KL-% | P3: OTT | Q3: KUN | R3: LÖI | S3: TOI | T3: KL | U3: OTT | V3: KUN | W3: LÖI | X3: TOI | Y3: KL | Z3: IL | AA3: LL | AB3: Halli | AC3: K | AD3: H | AE3: P
B4: 2003 | C4: 1. | D4: YPJ | F4: ykköspesis
B5: 2004 | C5: 1. | D5: Virkiä 2 | F5: suomensarja
B6: 2005 | C6: 5. | D6: Virkiä 2 | F6: ykköspesis
B7: 2006 | C7: 6. | D7: Virkiä 2 | F7: ykköspesis
B8: 2006 | C8: 5. | D8: Virkiä | E8: 4 | F8: 0 | G8: 0 | H8: 3 | I8: 6 | J8: 6 | K8: 0 | L8: 0 | M8: 0 | N8: 40.0 % | O8: 15 | P8: 3 | Q8: 0 | R8: 0 | S8: 1 | T8: 1
B9: 2007 | C9: 5. | D9: Virkiä 2 | F9: ykköspesis
B10: 2007 | C10: 6. | D10: Virkiä | E10: 1 | F10: 0 | G10: 0 | H10: 0 | I10: 2 | J10: 2 | K10: 0 | L10: 0 | M10: 0 | N10: 40.0 % | O10: 5
B11: 2008 | C11: 9. | D11: YPJ | E11: 20 | F11: 0 | G11: 1 | H11: 10 | I11: 47 | J11: 20 | K11: 16 | L11: 10 | M11: 1 | N11: 50.0 % | O11: 94
B12: 2009 | C12: 11. | D12: YPJ | E12: 23 | F12: 1 | G12: 8 | H12: 9 | I12: 74 | J12: 2 | K12: 30 | L12: 33 | M12: 9 | N12: 55.6 % | O12: 133 | U12: 9 | V12: 0 | W12: 0 | X12: 2 | Y12: 22
B13: 2010 | C13: 3. | D13: Virkiä | E13: 18 | F13: 0 | G13: 6 | H13: 0 | I13: 15 | J13: 0 | K13: 3 | L13: 6 | M13: 6 | N13: 21.7 % | O13: 69 | P13: 8 | Q13: 0 | R13: 13 | S13: 0 | T13: 16 | AE13: 1
B14: Yhteensä | E14: =SUM(E6:E13) -> 66 | F14: 1 | G14: 15 | H14: 22 | I14: 144 | J14: 30 | K14: 49 | L14: 49 | M14: 16 | N14: =PRODUCT(I14/O14) -> 45.6 % | O14: =SUM(O8:O13) -> 316 | P14: =SUM(P6:P13) -> 11 | Q14: 0 | R14: 13 | S14: 1 | T14: 17 | U14: 9 | V14: 0 | W14: 0 | X14: 2 | Y14: 22 | Z14: 0 | AA14: 0 | AB14: 0 | AC14: 0 | AD14: 0 | AE14: 1
B15: Pesispörssi | D15: =SUM(F14:H14)+((I14-F14-G14)/3)+(E14/3)+(Z14*25)+(AA14*25)+(AB14*10)+(AC14*25)+(AD14*20)+(AE14*15) -> 117.7
B17: URA SUPERISSA | E17: OTT | F17: KUN | G17: LÖI | H17: TOI | I17: KL | K17: ka/L | L17: ka/T | M17: ka/KL | N17: K - % | P17: ENSIMMÄISET
B18: Runkosarja | E18: =PRODUCT(E14) -> 66 | F18: =PRODUCT(F14) -> 1 | G18: =PRODUCT(G14) -> 15 | H18: =PRODUCT(H14) -> 22 | I18: =PRODUCT(I14) -> 144 | K18: =PRODUCT((F18+G18)/E18) -> 0.24 | L18: =PRODUCT(H18/E18) -> 0.33 | M18: =PRODUCT(I18/E18) -> 2.18 | N18: =PRODUCT(N14) -> 45.6 % | O18: =PRODUCT(O14) -> 316 | P18: Ottelu | R18: 12.07. 2006 SoJy - Virkiä 1-2 (3-5, 1-0, 0-0, 1-2) | AA18: 1. ottelu | AD18: 18 v 2 kk 9 pv
B19: Ylempi loppusarja | E19: =PRODUCT(P14) -> 11 | F19: =PRODUCT(Q14) -> 0 | G19: =PRODUCT(R14) -> 13 | H19: =PRODUCT(S14) -> 1 | I19: =PRODUCT(T14) -> 17 | K19: =PRODUCT((F19+G19)/E19) -> 1.18 | L19: =PRODUCT(H19/E19) -> 0.09 | M19: =PRODUCT(I19/E19) -> 1.55 | N19: 46.0 % | O19: 37 | P19: Lyöty | R19: 30.07. 2008 PeTo-Jussit - YPJ 2-0 (7-6, 7-0) | AA19: 25. ottelu | AD19: 20 v 2 kk 27 pv
B20: Alempi loppusarja | E20: =PRODUCT(U14) -> 9 | F20: =PRODUCT(V14) -> 0 | G20: =PRODUCT(W14) -> 0 | H20: =PRODUCT(X14) -> 2 | I20: =PRODUCT(Y14) -> 22 | K20: =PRODUCT((F20+G20)/E20) -> 0.00 | L20: =PRODUCT(H20/E20) -> 0.22 | M20: =PRODUCT(I20/E20) -> 2.44 | N20: 37.9 % | O20: 58 | P20: Tuotu | R20: 16.07. 2006 Virkiä - SiiPe 2-0 (6-3, 12-0) | AA20: 6. ottelu | AD20: 18 v 2 kk 13 pv
B21: KAIKKI | E21: =SUM(E18:E20) -> 86 | F21: =SUM(F18:F20) -> 1 | G21: =SUM(G18:G20) -> 28 | H21: =SUM(H18:H20) -> 25 | I21: =SUM(I18:I20) -> 183 | K21: =PRODUCT((F21+G21)/E21) -> 0.34 | L21: =PRODUCT(H21/E21) -> 0.29 | M21: =PRODUCT(I21/E21) -> 2.13 | N21: =PRODUCT(I21/O21) -> 44.5 % | O21: =SUM(O18:O20) -> 411 | P21: Kunnari | R21: 15.07. 2009 Virkiä - YPJ 2-0 (1-0, 6-4) | AA21: 43. ottelu | AD21: 18 v 2 kk 9 pv
B23: Seurat | D23: YPJ = Ylihärmän Pesis-Junkkarit (1996), kasvattajaseura
D24: Virkiä = Lapuan Virkiä (1907)

Sheet NYP,NSS
B1: Riina Ahvenniemi | E1: 3.5.1988
B2: YKKÖSPESIS | E2: Runkosarja | L2: Runkosarja TOP-10 | Q2: Jatkosarjat | X2: SUOMENSARJA | AA2: Runkosarja | AH2: Runkosarja TOP-10 | AM2: Jatkosarjat
B3: Vuosi | C3: Sija | D3: Seura | E3: OTT | F3: KUN | G3: LÖI | H3: TOI | I3: KL | J3: KL-% | L3: LÖI | M3: TOI | N3: L+T | O3: KL | Q3: OTT | R3: KUN | S3: LÖI | T3: TOI | U3: KL | V3: KL-% | X3: Vuosi | Y3: Sija | Z3: Seura | AA3: OTT | AB3: KUN | AC3: LÖI | AD3: TOI | AE3: KL | AF3: KL-% | AH3: LÖI | AI3: TOI | AJ3: L+T | AK3: KL | AM3: OTT | AN3: KUN | AO3: LÖI | AP3: TOI | AQ3: KL | AR3: KL-%
B5: 2003 | C5: 1. | D5: YPJ | E5: 1 | F5: 0 | G5: 0 | H5: 0 | I5: 0 | J5: 0.0 % | K5: 0
X6: 2004 | Y6: 1. | Z6: Virkiä 2 | AA6: 12 | AB6: 2 | AC6: 16 | AD6: 22 | AE6: 55 | AF6: 65.5 % | AG6: 84 | AM6: 4 | AN6: 1 | AO6: 4 | AP6: 3 | AQ6: 13 | AR6: 56.5 % | AS6: 23
B7: 2005 | C7: 5. | D7: Virkiä 2 | E7: 17 | F7: 1 | G7: 4 | H7: 14 | I7: 36 | J7: 42.4 % | K7: 85
B8: 2006 | C8: 6. | D8: Virkiä 2 | E8: 13 | F8: 3 | G8: 4 | H8: 19 | I8: 64 | J8: 65.3 % | K8: 98 | M8: 9.
B9: 2007 | C9: 5. | D9: Virkiä 2 | E9: 11 | F9: 1 | G9: 6 | H9: 17 | I9: 51 | J9: 63.8 % | K9: 80
B10: YHTEENSÄ | E10: =SUM(E4:E9) -> 42 | F10: =SUM(F4:F9) -> 5 | G10: =SUM(G4:G9) -> 14 | H10: =SUM(H4:H9) -> 50 | I10: =SUM(I4:I9) -> 151 | J10: =PRODUCT(I10/K10) -> 57.4 % | K10: =SUM(K4:K9) -> 263 | Q10: =SUM(Q4:Q9) -> 0 | R10: =SUM(R4:R9) -> 0 | S10: =SUM(S4:S9) -> 0 | T10: =SUM(T4:T9) -> 0 | U10: =SUM(U4:U9) -> 0 | V10: 0.0 % | W10: =SUM(W4:W9) -> 0 | X10: YHTEENSÄ | AA10: =SUM(AA4:AA9) -> 12 | AB10: =SUM(AB4:AB9) -> 2 | AC10: =SUM(AC4:AC9) -> 16 | AD10: =SUM(AD4:AD9) -> 22 | AE10: =SUM(AE4:AE9) -> 55 | AF10: =PRODUCT(AE10/AG10) -> 65.5 % | AG10: =SUM(AG4:AG9) -> 84 | AM10: =SUM(AM4:AM9) -> 4 | AN10: =SUM(AN4:AN9) -> 1 | AO10: =SUM(AO4:AO9) -> 4 | AP10: =SUM(AP4:AP9) -> 3 | AQ10: =SUM(AQ4:AQ9) -> 13 | AR10: =PRODUCT(AQ10/AS10) -> 56.5 % | AS10: =SUM(AS4:AS9) -> 23
B12: KAIKKI OTTELUT | E12: OTT | F12: KUN | G12: LÖI | H12: TOI | I12: KL | J12: KL-% | L12: ka/L | M12: ka/T | N12: ka/l+t | O12: ka/kl | R12: Seurat | T12: YPJ = Ylihärmän Pesis-Junkkarit (1996), kasvattajaseura
B13: SUPERPESIS | E13: 86 | F13: 1 | G13: 28 | H13: 25 | I13: 183 | J13: 44.5 % | K13: =PRODUCT(I13/J13) -> 411.2359551 | L13: =PRODUCT((F13+G13)/E13) -> 0.34 | M13: =PRODUCT(H13/E13) -> 0.29 | N13: =PRODUCT((F13+G13+H13)/E13) -> 0.63 | O13: =PRODUCT(I13/E13) -> 2.13 | T13: Virkiä = Lapuan Virkiä (1907)
B14: YKKÖSPESIS | E14: =PRODUCT(E10+Q10) -> 42 | F14: =PRODUCT(F10+R10) -> 5 | G14: =PRODUCT(G10+S10) -> 14 | H14: =PRODUCT(H10+T10) -> 50 | I14: =PRODUCT(I10+U10) -> 151 | J14: =PRODUCT(I14/K14) -> 57.4 % | K14: =PRODUCT(K10+W10) -> 263 | L14: =PRODUCT((F14+G14)/E14) -> 0.45 | M14: =PRODUCT(H14/E14) -> 1.19 | N14: =PRODUCT((F14+G14+H14)/E14) -> 1.64 | O14: =PRODUCT(I14/E14) -> 3.60
B15: SUOMENSARJA | E15: =PRODUCT(AA10+AM10) -> 16 | F15: =PRODUCT(AB10+AN10) -> 3 | G15: =PRODUCT(AC10+AO10) -> 20 | H15: =PRODUCT(AD10+AP10) -> 25 | I15: =PRODUCT(AE10+AQ10) -> 68 | J15: 0.0 % | K15: =PRODUCT(AG10+AS10) -> 107 | L15: 0.00 | M15: 0.00 | N15: 0.00 | O15: 0.00
B16: YHTEENSÄ | E16: =SUM(E13:E15) -> 144 | F16: =SUM(F13:F15) -> 9 | G16: 62 | H16: 100 | I16: 402 | J16: =PRODUCT(I16/K16) -> 51.5 % | K16: =SUM(K13:K15) -> 781.2359551 | L16: =PRODUCT((F16+G16)/E16) -> 0.49 | M16: =PRODUCT(H16/E16) -> 0.69 | N16: =PRODUCT((F16+G16+H16)/E16) -> 1.19 | O16: =PRODUCT(I16/E16) -> 2.79
